bitfinex/quotes_ETHUSD_20240827
["timestamp","ask_amount","ask_price","bid_price","bid_amount"]
[1724749246327,3.71816,2689.5,2688.9,7.35179856]
[1724749246709,3.71816,2689.5,2689.0,3.71883]
[1724749246910,3.71816,2689.5,2688.9,3.63290856]
[1724749247265,7.43643,2689.5,2689.0,3.71883]
[1724749247447,3.71802,2689.6,2689.1,2.3884]
[1724749247818,3.71802,2689.6,2689.1,3.63420856]
[1724749248154,3.71795,2689.7,2689.1,3.63420856]
[1724749248155,7.43595,2689.7,2689.1,7.35287856]
[1724749248448,7.43595,2689.7,2689.1,3.63420856]
[1724749248449,3.71804,2689.6,2689.1,3.63420856]
[1724749249134,3.71819,2689.5,2689.1,3.63420856]
[1724749249333,3.71819,2689.5,2689.1,2.3884]
[1724749252051,3.71819,2689.5,2688.8,3.71904]
[1724749252205,3.71819,2689.5,2688.9,2.3072]
[1724749252909,3.71844,2689.3,2688.9,2.3072]
[1724749253361,3.71844,2689.3,2688.7,1.24580856]
[1724749253600,3.50780856,2689.4,2688.7,2.4994]
[1724749253876,3.7188,2689.1,2688.7,2.4994]
[1724749254853,7.43705,2689.3,2688.7,6.21866]
[1724749255251,1.09448586,2689.2,2688.7,6.21866]
[1724749255450,1.09448586,2689.2,2688.7,7.46446856]
[1724749256572,1.09448586,2689.2,2688.7,2.4994]
[1724749256778,3.71871,2689.1,2688.7,2.4994]
[1724749256946,4.81309586,2689.2,2688.7,2.4994]
[1724749257321,0.48129859,2689.1,2688.7,6.21866]
[1724749258640,0.48129859,2689.1,2688.8,3.71912]
[1724749259339,0.48129859,2689.1,2688.8,3.71906]
[1724749260340,0.48129859,2689.1,2688.9,3.71898]
[1724749260543,3.71822,2689.5,2688.9,3.71898]
[1724749260769,3.71831,2689.4,2688.8,7.43809]
[1724749260974,3.71831,2689.4,2688.8,3.71904]
[1724749262969,3.71822,2689.5,2688.9,2.2599]
[1724749263295,1.10100705,2689.5,2689.1,5.97861]
[1724749263670,1.10100705,2689.5,2689.1,2.2599]
[1724749263969,1.10100705,2689.5,2689.1,5.97857]
[1724749264813,1.10100705,2689.5,2689.2,3.71857]
[1724749265865,3.71803,2689.6,2689.1,2.2599]
[1724749266794,3.71803,2689.6,2689.1,5.97859]
[1724749267356,7.43589,2689.7,2689.1,5.97859]
[1724749267558,0.743589,2689.6,2689.3,2.3751]
[1724749267806,3.71782,2689.8,2689.3,2.3751]
[1724749268096,3.71789,2689.7,2689.3,2.3751]
[1724749268682,3.71803,2689.6,2689.3,2.3751]
[1724749269015,3.71803,2689.6,2689.1,5.99779]
[1724749271305,3.71818,2689.5,2689.1,2.2791]
[1724749271520,4.090148,2689.4,2688.9,7.38250856]
[1724749272167,3.71844,2689.3,2688.9,3.66360856]
[1724749272366,4.7287438,2689.3,2688.9,3.66360856]
[1724749272565,4.7287438,2689.3,2688.9,2.4178]
[1724749273216,4.7287438,2689.3,2688.9,3.66360856]
[1724749273370,1.0103038,2689.3,2688.9,3.66360856]
[1724749273693,4.090168,2689.4,2688.9,7.38257856]
[1724749276920,0.371818,2689.4,2688.9,7.38257856]
[1724749277079,0.371818,2689.4,2688.9,7.38251856]
[1724749278219,4.090158,2689.4,2688.9,7.38251856]
[1724749278519,4.090158,2689.4,2688.9,6.13671]
[1724749280016,0.7808338,2689.3,2688.9,6.13671]
[1724749280398,4.4993138,2689.3,2688.7,7.25688856]
[1724749280580,8.2178338,2689.3,2688.7,6.01108]
[1724749280788,0.73548318,2689.2,2688.7,6.01108]
[1724749281117,0.73548318,2689.2,2688.7,9.73027]
[1724749282916,0.73548318,2689.2,2688.8,3.71909]
[1724749283999,0.7808338,2689.3,2688.9,3.71898]
[1724749284196,0.371818,2689.4,2689.0,2.3759]
[1724749285995,4.090128,2689.4,2689.0,2.3759]
[1724749288430,4.090128,2689.4,2688.9,3.71898]
[1724749291961,3.71859,2689.2,2688.7,3.71918]
[1724749292255,1.24580856,2689.0,2688.5,3.0]
[1724749292460,7.28,2689.5,2688.3,3.71973]
[1724749292461,1.24580856,2688.8,2688.3,3.71973]
[1724749292618,3.71928,2688.7,2688.0,6.01562]
[1724749292817,4.44719786,2688.7,2688.0,6.01562]
[1724749293014,3.56010856,2688.6,2688.0,6.01562]
[1724749293530,2.3143,2688.6,2688.0,6.01562]
[1724749294016,2.3143,2688.6,2688.2,3.71992]
[1724749294221,3.11503064,2688.6,2688.2,3.71992]
[1724749295155,0.80073064,2688.6,2688.2,3.71992]
[1724749299782,3.71897,2689.0,2688.5,1.24580856]
[1724749299932,9.624,2689.2,2688.9,1.24580856]
[1724749300273,12.35,2689.7,2689.1,1.24580856]
[1724749300274,9.624,2689.6,2689.1,1.24580856]
[1724749300432,13.34204,2689.6,2689.1,1.24580856]
[1724749301274,17.06015,2689.6,2689.1,1.24580856]
[1724749301445,13.34204,2689.6,2689.1,1.24580856]
[1724749301768,2.569204,2689.5,2689.1,1.24580856]
[1724749302585,6.287364,2689.5,2689.1,1.24580856]
[1724749305662,6.287364,2689.5,2689.0,3.71873]
[1724749306190,10.005614,2689.5,2689.0,3.71873]
[1724749306389,6.287364,2689.5,2689.0,3.71873]
[1724749306549,0.56707692,2689.4,2689.0,3.71873]
[1724749310946,3.71844,2689.3,2688.7,1.24580856]
[1724749311147,6.51054169,2689.2,2688.7,1.24580856]
[1724749311448,2.79195169,2689.2,2688.7,4.96505856]
[1724749312897,3.05477692,2689.4,2688.8,7.43813]
[1724749313189,6.77308692,2689.4,2688.8,3.71905]
[1724749313793,1.04913269,2689.3,2688.8,3.71905]
[1724749316085,0.56707692,2689.4,2689.0,3.71883]
[1724749317264,4.28541692,2689.4,2688.8,3.71905]
[1724749317466,0.42854169,2689.3,2688.8,3.71904]
[1724749317865,2.4676,2689.2,2688.8,7.43809]
[1724749318765,0.42854169,2689.3,2688.9,3.71898]
[1724749319157,0.70614586,2689.2,2688.7,3.71923]
[1724749319466,0.70614586,2689.2,2688.8,1.24580856]
[1724749319674,0.70614586,2689.2,2688.8,4.96485856]
[1724749319864,0.70614586,2689.2,2688.8,7.27115856]
[1724749320493,0.42854169,2689.3,2688.8,7.27115856]
[1724749320880,0.42854169,2689.3,2688.8,3.71905]
[1724749321065,4.14700169,2689.3,2688.8,3.71905]
[1724749321800,2.91457692,2689.4,2688.9,3.71898]
[1724749322005,0.56707692,2689.4,2689.0,2.4359]
[1724749322157,0.56707692,2689.4,2689.1,3.71871]
[1724749322360,0.56707692,2689.4,2689.0,2.4359]
[1724749322668,0.56707692,2689.4,2689.0,6.15474]
[1724749323492,0.56707692,2689.4,2689.1,3.7187]
[1724749325293,0.56707692,2689.4,2689.0,2.4359]
[1724749325654,0.56707692,2689.4,2688.9,3.71887]
[1724749327065,0.56707692,2689.4,2689.1,3.71871]
[1724749328497,0.56707692,2689.4,2688.9,7.43774]
[1724749328703,0.56707692,2689.4,2689.0,3.71879]
[1724749329408,0.56707692,2689.4,2688.9,3.71887]
[1724749329604,0.56707692,2689.4,2688.9,7.43778]
[1724749329902,0.56707692,2689.4,2688.9,3.71887]
[1724749330260,13.30424,2689.6,2688.9,3.71887]
[1724749330261,7.28,2689.6,2689.4,3.71828]
[1724749330465,7.28,2689.6,2689.4,1.24580856]
[1724749330716,7.28,2689.6,2689.5,2.3706]
[1724749330883,5.96884,2690.0,2689.5,2.3706]
[1724749331214,8.172445,2690.0,2689.5,2.3706]
[1724749331505,8.172445,2690.0,2689.4,1.24580856]
[1724749331705,3.71769,2689.9,2689.4,1.24580856]
[1724749332002,3.71775,2689.8,2689.3,3.71842]
[1724749332577,0.93267592,2689.9,2688.8,5.4323]
[1724749332578,4.96390856,2689.6,2688.8,5.4323]
[1724749332793,1.24580856,2689.4,2688.9,3.71897]
[1724749333174,4.96419856,2689.4,2688.9,3.71897]
[1724749333603,3.71839,2689.4,2688.9,3.71897]
[1724749333907,3.71845,2689.3,2688.7,8.68416856]
[1724749334110,4.39532609,2689.3,2688.7,4.96498856]
[1724749334294,3.71858,2689.2,2688.7,4.96498856]
[1724749334992,0.67687609,2689.3,2688.7,4.96496856]
[1724749335310,4.39533609,2689.3,2688.7,8.68414856]
[1724749335483,4.39533609,2689.3,2688.7,4.96496856]
[1724749336071,2.4569,2689.1,2688.7,3.71916]
[1724749336282,0.617548,2689.0,2688.6,3.71931]
[1724749336505,0.617548,2689.0,2688.5,10.43888]
[1724749336708,0.617548,2689.0,2688.5,7.96522856]
[1724749336905,6.17562,2689.1,2688.5,7.96522856]
[1724749336906,2.4569,2689.1,2688.6,3.71932]
[1724749337078,6.77192609,2689.3,2688.7,6.12804]
[1724749337281,1.17361147,2689.2,2688.7,7.37384856]
[1724749337477,4.89219147,2689.2,2688.7,7.37384856]
[1724749338782,4.89219147,2689.2,2688.7,11.09308856]
[1724749339282,1.17361147,2689.2,2688.7,7.37384856]
[1724749339483,1.17361147,2689.2,2688.7,7.37377856]
[1724749339680,2.3765,2689.0,2688.5,3.71941]
[1724749340123,2.3765,2689.0,2688.6,3.71939]
[1724749343015,2.3765,2689.0,2688.5,3.71941]
[1724749343498,7.34116856,2689.0,2688.5,3.71941]
[1724749343702,2.3202,2688.9,2688.5,3.71941]
[1724749343902,0.35660086,2688.8,2688.5,3.71941]
[1724749344919,0.35660086,2688.8,2688.3,8.68523856]
[1724749345238,0.35660086,2688.8,2688.4,3.71966]
[1724749347833,0.35660086,2688.8,2688.3,4.96550856]
[1724749347834,4.07573086,2688.8,2688.3,1.24580856]
[1724749348006,0.63957909,2688.7,2688.2,3.71988]
[1724749348577,0.79454476,2689.1,2688.2,3.71988]
[1724749348578,3.71852,2689.3,2688.6,4.96513856]
[1724749348724,0.613442,2689.3,2688.9,1.24580856]
[1724749348908,2.4159,2689.4,2688.9,1.24580856]
[1724749349109,2.4159,2689.4,2688.9,4.96479856]
[1724749350737,9.6907,2689.6,2689.0,3.71883]
[1724749350940,1.340863,2689.5,2689.1,1.24580856]
[1724749351145,1.340863,2689.5,2689.1,4.96450856]
[1724749352132,1.340863,2689.5,2689.1,3.7187]
[1724749352651,1.340863,2689.5,2689.1,7.43733]
[1724749352825,3.71768,2689.9,2689.1,6.70574469]
[1724749352826,3.71779,2689.8,2689.1,6.70574469]
[1724749354041,3.71779,2689.8,2689.3,3.7184]
[1724749354347,0.617289,2689.7,2689.3,3.7184]
[1724749354678,2.4551,2690.1,2689.4,2.4512]
[1724749355007,6.17247,2690.1,2689.6,6.70500469]
[1724749355147,6.789695,2690.1,2689.6,6.70500469]
[1724749356023,4.334595,2690.1,2689.6,6.70500469]
[1724749359154,4.334595,2690.1,2689.6,6.70381746]
[1724749360075,4.334595,2690.1,2689.7,2.4631]
[1724749360234,0.4334595,2690.0,2689.7,2.4631]
[1724749364956,0.4334595,2690.0,2689.7,6.18097]
[1724749365159,0.617225,2690.1,2689.7,6.18097]
[1724749365382,0.617225,2690.1,2689.8,3.71772]
[1724749366337,0.617225,2690.1,2689.7,2.4631]
[1724749368825,0.617225,2690.1,2689.7,6.18098]
[1724749369417,0.617225,2690.1,2689.7,2.4631]
[1724749370820,0.617225,2690.1,2689.6,3.71670277]
[1724749372618,0.6757645,2690.0,2689.5,2.3683]
[1724749372793,0.6757645,2690.0,2689.5,6.0864]
[1724749374076,0.6757645,2690.0,2689.6,1.2442128]
[1724749378621,0.6757645,2690.0,2689.6,4.9622128]
[1724749381410,2.2748,2689.9,2689.2,3.71849]
[1724749381592,2.2748,2689.9,2688.6,0.92677304]
[1724749381593,6.43181745,2689.9,2689.4,3.7183]
[1724749381797,3.7177,2689.9,2689.5,1.2442128]
[1724749383430,3.7177,2689.9,2689.4,6.20901]
[1724749383587,6.48259,2689.8,2689.3,1.2442128]
[1724749383931,2.76477,2689.8,2689.3,4.9626228]
[1724749384615,3.71819,2689.5,2689.0,6.0052]
[1724749384928,2.2582,2689.4,2688.8,7.43814]
[1724749385175,6.348319,2689.4,2688.9,1.2442128]
[1724749385484,6.348319,2689.4,2688.9,4.9632028]
[1724749386384,2.630019,2689.4,2688.9,4.9632028]
[1724749386589,0.6348209,2689.3,2689.1,1.2442128]
[1724749387741,0.371819,2689.4,2689.1,1.2442128]
[1724749388231,0.371819,2689.4,2689.1,4.9628428]
[1724749389004,0.371819,2689.4,2689.1,1.2442128]
[1724749401142,3.71851,2689.3,2689.1,1.2442128]
[1724749401347,0.4090329,2689.2,2688.9,1.2442128]
[1724749401556,0.4090329,2689.2,2688.8,6.13729]
[1724749401784,0.4090329,2689.2,2688.9,1.2442128]
[1724749404154,0.41275429,2689.1,2688.6,3.71932]
[1724749404355,0.41275429,2689.1,2688.9,1.2442128]
[1724749406462,3.71847,2689.3,2688.9,1.2442128]
[1724749409517,3.71847,2689.3,2688.8,6.12352]
[1724749409714,3.71847,2689.3,2689.0,1.2442128]
[1724749413195,2.27,2689.1,2688.2,3.2303334]
[1724749413393,1.2442128,2689.2,2688.2,6.16917]
[1724749413394,2.27,2688.8,2688.2,6.16917]
[1724749413580,2.27,2688.8,2688.3,3.71982]
[1724749416032,3.71936,2688.7,2688.0,4.41664359]
[1724749416242,2.4589,2688.4,2688.0,0.69647359]
[1724749417540,6.17861,2688.4,2688.0,0.69647359]
[1724749417698,0.74228228,2688.3,2688.0,0.69647359]
[1724749417897,0.74228228,2688.3,2687.9,1.2442128]
[1724749419228,0.74228228,2688.3,2687.9,4.9645528]
[1724749421397,0.74228228,2688.3,2687.9,1.2442128]
[1724749422135,0.74228228,2688.3,2687.9,4.9645428]
[1724749422436,0.74228228,2688.3,2687.9,3.72033]
[1724749422639,0.69208923,2688.2,2688.0,1.2442128]
[1724749429400,0.69208923,2688.2,2687.8,3.72042]
[1724749430595,2.3838,2688.1,2687.6,7.44142]
[1724749430807,2.82499592,2688.1,2687.6,7.44142]
[1724749431170,2.82499592,2688.1,2687.7,3.72063]
[1724749432309,2.82499592,2688.1,2687.7,8.6854728]
[1724749432467,0.44119592,2688.1,2687.7,8.6854728]
[1724749432780,0.44119592,2688.1,2687.7,4.9648428]
[1724749434302,0.44119592,2688.1,2687.7,8.6854128]
[1724749434807,0.44119592,2688.1,2687.7,4.9647828]
[1724749437368,7.28,2688.4,2687.9,1.2442128]
[1724749437606,7.28,2688.4,2688.2,4.9640828]
[1724749437869,7.28,2688.4,2688.3,3.71982]
[1724749438186,7.28,2688.9,2688.6,3.71939]
[1724749438374,18.53374,2689.2,2688.7,1.2442128]
[1724749438571,1.853374,2689.1,2688.7,1.2442128]
[1724749439087,1.853374,2689.1,2688.9,1.2442128]
[1724749439275,7.28,2689.3,2688.9,4.9631728]
[1724749439468,7.28,2689.3,2689.1,1.2442128]
[1724749444037,7.43621,2689.6,2689.1,1.2442128]
[1724749444233,0.618318,2689.5,2689.1,1.2442128]
[1724749445204,0.618318,2689.5,2688.9,4.9631928]
[1724749445205,4.336488,2689.5,2688.9,4.9631928]
[1724749445409,0.8054568,2689.4,2688.9,4.9631928]
[1724749445609,4.5238368,2689.4,2688.9,1.2442128]
[1724749445821,2.3181,2689.3,2688.9,1.2442128]
[1724749446040,6.03666,2689.3,2688.9,1.2442128]
[1724749446200,1.05604968,2689.2,2688.9,1.2442128]
[1724749447058,0.8054568,2689.4,2689.1,1.2442128]
[1724749447203,0.618318,2689.5,2689.1,1.2442128]
[1724749450111,0.618318,2689.5,2689.0,6.05555]
[1724749450318,4.336548,2689.5,2689.0,6.05555]
[1724749451453,4.336548,2689.5,2689.0,2.3368]
[1724749451660,0.8054568,2689.4,2689.0,2.3368]
[1724749454152,0.8054568,2689.4,2689.0,6.05563]
[1724749460645,0.8054568,2689.4,2689.0,2.3368]
[1724749461748,0.8054568,2689.4,2689.0,6.05565]
[1724749462338,12.35,2689.8,2689.0,6.05565]
[1724749462339,10.99751,2690.0,2689.5,3.71808]
[1724749462558,10.99751,2690.0,2689.4,2.3475]
[1724749462559,7.28,2690.0,2689.4,2.3475]
[1724749462729,1.099751,2689.9,2689.6,3.71795]
[1724749462930,1.099751,2689.9,2689.8,2.4515]
[1724749463232,3.7172,2690.2,2689.8,2.4515]
[1724749463431,7.4345,2690.2,2689.8,2.4515]
[1724749463939,3.7172,2690.2,2689.8,2.4515]
[1724749464154,1.09972,2690.1,2689.8,2.4515]
[1724749470186,7.28,2690.3,2689.8,2.4515]
[1724749470474,7.28,2690.3,2689.9,7.43502]
[1724749470635,7.28,2690.3,2689.9,3.7175]
[1724749471038,18.44922,2690.6,2689.8,2.4515]
[1724749471039,19.63,2690.6,2689.8,2.98744904]
[1724749471265,7.28,2690.6,2690.1,7.43447]
[1724749471475,7.28,2690.6,2690.2,2.2565]
[1724749471782,8.993083,2690.6,2690.2,2.2565]
[1724749472081,8.993083,2690.6,2690.2,3.50022614]
[1724749472383,8.993083,2690.6,2690.2,7.21739614]
[1724749473077,6.13433,2690.8,2690.4,1.24372614]
[1724749473281,7.28,2690.9,2690.6,1.24372614]
[1724749474971,7.28,2690.9,2690.6,3.50632614]
[1724749475179,8.379616,2690.9,2690.6,2.2626]
[1724749475780,8.379616,2690.9,2690.6,3.50632614]
[1724749475990,7.28,2690.9,2690.6,3.50632614]
[1724749476804,3.71616,2691.0,2690.6,3.50632614]
[1724749478688,3.71623,2690.9,2690.6,2.2626]
[1724749479159,3.71616,2691.0,2690.6,2.2626]
[1724749479363,0.371616,2690.9,2690.6,2.2626]
[1724749484526,3.71616,2691.0,2690.6,2.2626]
[1724749488820,0.38901586,2690.9,2690.6,2.2626]
[1724749494830,3.71596,2691.1,2690.6,2.2626]
[1724749495009,3.71596,2691.1,2690.6,3.50632614]
[1724749496708,3.8440856,2691.2,2690.6,3.50632614]
[1724749496709,0.1282056,2691.2,2690.8,3.71634]
[1724749497035,0.1282056,2691.2,2691.1,2.4866]
[1724749498074,0.1282056,2691.2,2691.1,3.73032614]
[1724749498631,0.1282056,2691.2,2691.1,7.44627614]
[1724749499141,0.1282056,2691.2,2691.1,12.27845375]
[1724749500660,0.1282056,2691.2,2691.1,8.56250375]
[1724749500969,0.1282056,2691.2,2691.1,12.27845375]
[1724749501271,0.1282056,2691.2,2691.1,8.56250375]
[1724749503480,0.1282056,2691.2,2691.1,12.27845375]
[1724749505454,0.1282056,2691.2,2691.1,8.56250375]
[1724749505980,0.1282056,2691.2,2691.1,12.27845375]
[1724749507488,0.1282056,2691.2,2691.1,15.27845375]
[1724749508047,5.6e-06,2691.2,2691.1,23.72823765]
[1724749508342,5.6e-06,2691.2,2691.1,23.46440375]
[1724749509500,5.6e-06,2691.2,2691.1,19.54440375]
[1724749512985,5.6e-06,2691.2,2691.1,23.46440375]
[1724749513197,5.6e-06,2691.2,2691.1,19.7313252]
[1724749516480,5.6e-06,2691.2,2691.1,23.4472752]
[1724749516822,5.6e-06,2691.2,2691.1,19.7313252]
[1724749518127,2.2537,2692.5,2692.0,3.71468]
[1724749518332,2.2537,2692.5,2692.2,1.24372614]
[1724749520013,2.2537,2692.5,2692.0,4.95840614]
[1724749520014,5.96773,2692.5,2692.0,4.95840614]
[1724749520739,2.2537,2692.5,2692.0,4.95840614]
[1724749520906,2.2537,2692.5,2692.0,8.67302614]
[1724749521110,2.2537,2692.5,2692.0,6.05731875]
[1724749522091,2.2537,2692.5,2692.1,3.71456]
[1724749523195,2.2537,2692.5,2692.2,1.24372614]
[1724749523890,0.38889105,2692.4,2692.2,1.24372614]
[1724749524090,4.10305105,2692.4,2692.0,2.34269875]
[1724749524343,4.10305105,2692.4,2691.9,3.71482]
[1724749526199,2.37,2692.3,2691.9,3.71482]
[1724749526399,2.37,2692.3,2691.9,4.58218261]
[1724749527993,2.37,2692.3,2691.5,9.19347]
[1724749528200,2.313,2692.0,2691.5,7.95904614]
[1724749528620,2.313,2692.0,2691.6,3.71518]
[1724749528940,2.313,2692.0,2691.2,11.83123252]
[1724749528941,3.71506,2691.8,2691.4,1.24372614]
[1724749529097,3.71506,2691.8,2691.4,4.24372614]
[1724749529502,9.74255,2692.0,2691.4,4.24372614]
[1724749529701,3.71486,2691.9,2691.4,5.85633801]
[1724749529940,6.02774,2692.0,2691.4,9.57185801]
[1724749531536,2.313,2692.0,2691.6,1.24372614]
[1724749531742,2.313,2692.0,2691.6,4.95886614]
[1724749531947,2.313,2692.0,2691.7,3.71501]
[1724749532238,2.3363,2692.3,2691.9,3.71483]
[1724749532609,2.3363,2692.3,2692.0,1.28718777]
[1724749533235,0.38889105,2692.4,2692.2,1.24372614]
[1724749533613,0.38889105,2692.4,2692.3,0.04338797]
[1724749534153,0.38889105,2692.4,2692.2,1.24372614]
[1724749534301,0.38889105,2692.4,2692.3,0.04329201]
[1724749534640,0.38889105,2692.4,2692.1,3.71447]
[1724749534995,0.38889105,2692.4,2692.2,0.04329372]
[1724749539818,0.38889105,2692.4,2692.2,3.75770372]
[1724749540525,0.38889105,2692.4,2692.2,0.04329372]
[1724749540726,0.38889105,2692.4,2692.2,1.28701986]
[1724749541125,0.38889105,2692.4,2692.2,0.04329372]
[1724749543418,0.38889105,2692.4,2692.2,1.78716885]
[1724749543727,0.38889105,2692.4,2692.2,5.50158885]
[1724749543926,0.38889105,2692.4,2692.2,8.71577986]
[1724749544133,6.00486,2692.8,2692.3,3.71422]
[1724749544438,6.00486,2692.8,2692.4,1.24372614]
[1724749544759,6.00486,2692.8,2692.5,0.04287737]
[1724749545134,9.71855,2692.8,2692.5,0.04287737]
[1724749545326,9.71855,2692.8,2692.2,4.95806614]
[1724749545668,6.00486,2692.8,2692.3,0.04288078]
[1724749545952,9.71854,2692.8,2692.2,4.95806614]
[1724749546157,9.71854,2692.8,2692.4,0.04287908]
[1724749546340,9.71854,2692.8,2692.2,4.95806614]
[1724749546545,9.71854,2692.8,2692.5,0.04287737]
[1724749546715,9.71854,2692.8,2692.2,4.95806614]
[1724749546716,6.00486,2692.8,2692.2,9.78024775]
[1724749546916,6.00486,2692.8,2692.3,0.04288078]
[1724749547117,6.00486,2692.8,2692.2,6.06588775]
[1724749547317,6.00486,2692.8,2692.3,0.04288078]
[1724749547561,6.00486,2692.8,2692.3,3.71424]
[1724749547743,6.00486,2692.8,2692.4,0.04287908]
[1724749550685,2.2912,2692.8,2692.4,5.00075522]
[1724749551040,2.2912,2692.8,2692.4,1.28660522]
[1724749551685,2.2912,2692.8,2692.4,0.04287908]
[1724749551686,6.00483,2692.8,2692.4,0.04287908]
[1724749552451,9.71853,2692.8,2692.4,0.04287908]
[1724749552694,2.4183,2692.7,2692.4,0.04287908]
[1724749552840,0.971853,2692.8,2692.1,3.71449]
[1724749552841,2.4183,2692.5,2692.1,3.71449]
[1724749553557,2.4183,2692.5,2692.2,0.04120989]
[1724749556050,2.4183,2692.5,2692.2,3.75561989]
[1724749556492,2.4183,2692.5,2692.2,0.04120989]
[1724749558781,2.4183,2692.5,2692.2,3.75559989]
[1724749560183,2.4183,2692.5,2692.2,0.04120989]
[1724749561220,2.4183,2692.5,2692.2,3.75561989]
[1724749561415,2.4183,2692.5,2692.2,0.04120989]
[1724749563621,0.38883941,2692.7,2692.4,3.7141]
[1724749564232,0.38883941,2692.7,2692.5,0.04124587]
[1724749564938,0.38883941,2692.7,2692.3,9.83801]
[1724749565107,0.38883941,2692.7,2692.4,3.75537757]
[1724749567507,0.38883941,2692.7,2692.4,0.04124757]
[1724749568332,3.71348,2692.9,2692.4,0.04124757]
[1724749568657,3.71348,2692.9,2692.4,3.75537757]
[1724749569324,3.71348,2692.9,2692.4,0.04124757]
[1724749569527,0.73730061,2692.8,2692.2,4.95807614]
[1724749569733,0.73730061,2692.8,2692.3,0.04122874]
[1724749569929,0.73730061,2692.8,2692.2,4.95807614]
[1724749570249,4.45092061,2692.8,2692.3,0.04122874]
[1724749570443,4.53020006,2692.7,2692.1,6.21069]
[1724749570615,2.2966,2692.6,2692.4,0.04122704]
[1724749570819,3.71402,2692.5,2692.0,3.71469]
[1724749571340,3.71402,2692.5,2692.0,4.50973898]
[1724749572837,2.2966,2692.6,2692.0,8.22442898]
[1724749573367,3.71409,2692.5,2691.9,3.71484]
[1724749573564,3.71409,2692.5,2692.0,3.7147]
[1724749573859,3.71409,2692.5,2691.9,3.71476]
[1724749574565,6.0713,2692.3,2691.7,6.71501]
[1724749574766,6.0713,2692.3,2691.7,3.71501]
[1724749575462,6.0713,2692.3,2691.7,3.715]
[1724749575665,6.00789,2692.5,2692.0,3.71468]
[1724749575825,2.2938,2692.5,2691.9,6.15096]
[1724749576166,0.35375261,2692.4,2691.9,6.15096]
[1724749576470,6.00782,2692.5,2692.0,3.71467]
[1724749578240,6.08666,2692.7,2692.2,3.71441]
[1724749581382,6.08666,2692.7,2692.0,8.67299614]
[1724749581383,3.71388,2692.6,2692.0,8.67299614]
[1724749581537,3.71388,2692.6,2692.1,3.71456]
[1724749581952,6.08666,2692.7,2692.2,4.95814614]
[1724749582148,3.71376,2692.7,2692.3,2.4543]
[1724749583389,7.4276,2692.7,2692.3,2.4543]
[1724749583567,7.4276,2692.7,2692.4,0.03985754]
[1724749583767,3.71376,2692.7,2692.4,0.03985754]
[1724749583969,4.10259105,2692.7,2692.4,0.03985754]
[1724749585477,0.38883105,2692.7,2692.4,0.03985754]
[1724749586158,4.10259105,2692.7,2692.4,0.03985754]
[1724749586644,4.10259105,2692.7,2692.1,11.16002614]
[1724749586976,4.10259105,2692.7,2692.2,3.71441]
[1724749587192,4.10259105,2692.7,2692.2,3.75427095]
[1724749588044,4.10259105,2692.7,2692.3,1.24372614]
[1724749588389,4.10259105,2692.7,2692.3,1.28358539]
[1724749590584,0.38883105,2692.7,2692.3,4.99786539]
[1724749592165,0.38883105,2692.7,2692.3,6.24053639]
[1724749592915,0.38883105,2692.7,2692.4,3.71415]
[1724749593114,0.38883105,2692.7,2692.3,6.24053639]
[1724749593115,0.38883105,2692.7,2692.5,3.71398]
[1724749593314,0.38883105,2692.7,2692.5,3.75369899]
[1724749593470,0.38883105,2692.7,2692.5,4.99551253]
[1724749594613,0.38883105,2692.7,2692.5,1.28153253]
[1724749595269,0.38883105,2692.7,2692.5,0.03971899]
[1724749596823,4.10259105,2692.7,2692.5,0.03971899]
[1724749597103,4.10259105,2692.7,2692.4,1.24372614]
[1724749597104,0.38883105,2692.7,2692.4,1.24372614]
[1724749597267,0.38883105,2692.7,2692.6,0.0396694]
[1724749597464,0.38883105,2692.7,2692.5,2.53777794]
[1724749597663,0.38883105,2692.7,2692.6,0.03967624]
[1724749597867,0.38883105,2692.7,2692.6,0.78923248]
[1724749598103,7.28,2693.2,2692.7,3.71371]
[1724749598303,7.28,2693.2,2692.9,1.24372614]
[1724749598513,3.71294,2693.3,2692.9,1.24372614]
[1724749598803,3.71294,2693.3,2693.0,0.03957365]
[1724749599883,3.71319,2693.1,2693.0,0.03957365]
[1724749600089,6.14829,2693.1,2693.0,0.03957365]
[1724749600397,3.71333,2693.0,2692.4,4.95786614]
[1724749600774,3.71333,2693.0,2692.1,3.71449]
[1724749600775,3.71383,2692.7,2692.1,3.71449]
[1724749601090,3.71383,2692.7,2691.9,6.02008]
[1724749601091,3.71398,2692.6,2691.9,7.26380614]
[1724749601407,3.71398,2692.6,2692.0,0.602008]
[1724749601995,6.16906,2692.8,2692.1,2.98091336]
[1724749602198,2.4554,2692.8,2692.2,4.44416814]
[1724749602397,2.4554,2692.8,2692.3,9.73373]
[1724749602714,2.4554,2692.8,2692.3,9.73371]
[1724749602913,10.99336,2693.0,2692.3,9.73371]
[1724749603120,13.25966,2693.0,2692.4,0.5459585]
[1724749603322,13.25966,2693.0,2692.4,4.2601085]
[1724749605081,16.9731,2693.0,2692.4,4.2601085]
[1724749605478,3.71382,2692.7,2692.1,6.1621]
[1724749605723,3.71389,2692.6,2692.1,6.16208]
[1724749606030,7.42767,2692.7,2692.1,6.16208]
[1724749606180,3.71382,2692.7,2692.1,6.16208]
[1724749606618,3.71382,2692.7,2692.2,0.0393958]
[1724749606807,3.71382,2692.7,2692.1,6.16208]
[1724749607024,3.71382,2692.7,2692.3,0.0393941]
[1724749607209,3.71388,2692.6,2692.1,2.4476]
[1724749607407,9.5463,2693.0,2692.4,0.03939239]
[1724749607408,2.2663,2692.5,2692.4,0.03939239]
[1724749607597,2.3183,2692.7,2692.1,3.71452]
[1724749607804,2.3183,2692.7,2692.4,0.03958389]
[1724749608143,2.3183,2692.7,2692.2,6.12372]
[1724749608299,2.3183,2692.7,2692.5,0.03958218]
[1724749608504,2.3183,2692.7,2692.2,6.12372]
[1724749608816,2.3183,2692.7,2692.3,3.71423]
[1724749609013,3.71291,2693.3,2692.7,2.3073]
[1724749609246,3.71291,2693.3,2692.8,3.71357]
[1724749609543,1.099291,2693.3,2692.8,3.75183057]
[1724749609842,7.28,2693.4,2692.8,3.75183057]
[1724749609843,10.9928,2693.4,2692.8,3.75183057]